[Event "Fagernes Chess Open 2024"]
[Site "Fagernes"]
[Date "2024.03.27"]
[Round "4.1"]
[White "Strand, Amund Pihl"]
[Black "Spanton, Tim R"]
[Result "1-0"]
[ECO "A37"]
[WhiteElo "1860"]
[BlackElo "1876"]
[Annotator "NA RC"]
[PlyCount "83"]
[EventDate "2024.03.25"]
[EventType "swiss"]
[EventCountry "NOR"]
[SourceTitle "playchess.com"]
[Source "ChessBase"]
[SourceQuality "1"]
[TimeControl "40/6000+30:2400+30"]

1. c4 {[%emt 0:12:52]} c5 {[%emt 0:00:04]} 2. Nc3 {[%emt 0:00:05]} Nc6 {[%emt 0:00:04]} 3. g3 {[%emt 0:00:07]} g6 {[%emt 0:00:04]} 4. Bg2 {[%emt 0:00:06]} Bg7 {[%emt 0:00:03]} 5. a3 {[%emt 0:00:37]} d6 {[%emt 0:01:04]} 6. Rb1 {[%emt 0:00:21]} a5 {[%emt 0:00:26]} 7. d3 {[%emt 0:00:31]} e5 {[%emt 0:01:01]} 8. Nf3 {[%emt 0:00:42]} Nge7 {[%emt 0:00:21]} 9. O-O {[%emt 0:00:16]} O-O {[%emt 0:00:06]} 10. Ne1 {[%emt 0:00:12]} f5 {[%emt 0:00:45]} 11. Bg5 {[%emt 0:00:28]} Rb8 {[%emt 0:01:29]} 12. Nc2 {[%emt 0:03:44]} h6 {[%emt 0:02:15]} 13. Bxe7 {[%emt 0:03:06]} Nxe7 {[%emt 0:00:16]} 14. Ne3 {[%emt 0:09:17]} Be6 {[%emt 0:01:52]} 15. Ned5 {[%emt 0:04:37]} Nxd5 {[%emt 0:00:31]} 16. Nxd5 {[%emt 0:11:13]} b5 {[%emt 0:00:52]} 17. b4 {[%emt 0:02:26]} cxb4 {[%emt 0:02:42]} 18. axb4 {[%emt 0:00:39]} Kh7 {[%emt 0:01:04]} 19. bxa5 {[%emt 0:05:09]} Bxd5 {[%emt 0:02:49]} 20. Bxd5 {[%emt 0:03:21]} Qxa5 {[%emt 0:00:08]} 21. Qb3 {[%emt 0:24:38]} bxc4 {[%emt 0:08:34]} 22. Qxc4 {[%emt 0:00:13]} Rfc8 {[%emt 0:00:25]} 23. Rxb8 {[%emt 0:01:44]} Rxb8 {[%emt 0:04:38]} 24. Qc6 {[%emt 0:10:55]} h5 {[%emt 0:04:36]} 25. e4 {[%emt 0:01:46]} Qd8 {[%emt 0:03:58]} 26. Ra1 {[%emt 0:01:05]} f4 {[%emt 0:00:18]} 27. Ra7 {[%emt 0:09:05]} Rb1+ {[%emt 0:05:01]} 28. Kg2 {[%emt 0:00:06]} f3+ {[%emt 0:00:04]} 29. Kxf3 {[%emt 0:01:07]} Qf6+ {[%emt 0:00:17]} 30. Kg2 {[%emt 0:03:59]} Rb2 {[%emt 0:00:51]} 31. Rf7 {[%emt 0:00:22]} Rxf2+ {[%emt 0:00:25]} 32. Kg1 {[%emt 0:01:08]} Rf1+ {[%emt 0:00:21]} 33. Kg2 {[%emt 0:00:02]} Rf2+ {[%emt 0:00:14]} 34. Kh3 {[%emt 0:00:23]} g5 {[%emt 0:00:32]} 35. Rxf6 {[%emt 0:00:41]} g4+ {[%emt 0:00:16]} 36. Kh4 {[%emt 0:00:07]} Bxf6+ {[%emt 0:02:04]} 37. Kxh5 {[%emt 0:00:12]} Rxh2+ {[%emt 0:00:36]} 38. Kxg4 {[%emt 0:00:05]} Kg6 {[%emt 0:01:46]} 39. Qe8+ {[%emt 0:00:12]} Kh6 {[%emt 0:00:19]} 40. Qe6 {[%emt 0:01:05]} Rf2 {[%emt 0:01:01]} 41. Qf7 {[%emt 0:40:36]} Rf1 {[%emt 0:42:08]} 42. Be6 {[%emt 0:00:08]} 1-0

[Event "Fagernes Chess Open 2024"]
[Site "Fagernes"]
[Date "2024.03.27"]
[Round "4.2"]
[White "Hausken, Andreas Skrede"]
[Black "Kuzmenko, Mykhailo"]
[Result "1-0"]
[ECO "B12"]
[WhiteElo "1963"]
[BlackElo "1747"]
[Annotator "NA RC"]
[PlyCount "77"]
[EventDate "2024.03.25"]
[EventType "swiss"]
[EventCountry "NOR"]
[SourceTitle "playchess.com"]
[Source "ChessBase"]
[SourceQuality "1"]
[TimeControl "40/6000+30:2400+30"]

1. e4 {[%emt 0:31:49]} c6 {[%emt 0:45:44]} 2. d4 {[%emt 0:00:30]} d5 {[%emt 0:00:30]} 3. e5 {[%emt 0:00:30]} c5 {[%emt 0:00:30]} 4. dxc5 {[%emt 0:00:30]} e6 {[%emt 0:00:30]} 5. Be3 {[%emt 0:00:30]} Nc6 {[%emt 0:00:30]} 6. Nf3 {[%emt 0:00:30]} Nge7 {[%emt 0:00:30]} 7. c3 {[%emt 0:00:30]} Nf5 {[%emt 0:00:30]} 8. Bd4 {[%emt 0:00:30]} Nfxd4 {[%emt 0:00:30]} 9. cxd4 {[%emt 0:00:30]} b6 {[%emt 0:00:30]} 10. b4 {[%emt 0:00:30]} a6 {[%emt 0:00:30]} 11. Nc3 {[%emt 0:00:30]} Be7 {[%emt 0:00:30]} 12. Bd3 {[%emt 0:00:30]} h6 {[%emt 0:00:30]} 13. a3 {[%emt 0:00:30]} O-O {[%emt 0:00:30]} 14. O-O {[%emt 0:00:30]} f6 {[%emt 0:00:30]} 15. exf6 {[%emt 0:00:30]} Bxf6 {[%emt 0:00:30]} 16. Bc2 {[%emt 0:00:30]} Qe7 {[%emt 0:00:30]} 17. Re1 {[%emt 0:00:30]} Qf7 {[%emt 0:00:30]} 18. Qd3 {[%emt 0:00:30]} g5 {[%emt 0:00:30]} 19. cxb6 {[%emt 0:00:30]} Qg7 {[%emt 0:00:30]} 20. Rad1 {[%emt 0:00:30]} g4 {[%emt 0:00:30]} 21. Ne5 {[%emt 0:00:30]} Nxe5 {[%emt 0:00:30]} 22. dxe5 {[%emt 0:00:30]} Bh4 {[%emt 0:00:30]} 23. Re2 {[%emt 0:00:30]} Rb8 {[%emt 0:00:30]} 24. Qd4 {[%emt 0:00:30]} Kh8 {[%emt 0:00:30]} 25. a4 {[%emt 0:00:30]} Rb7 {[%emt 0:00:30]} 26. a5 {[%emt 0:00:30]} Rbf7 {[%emt 0:00:30]} 27. g3 {[%emt 0:00:30]} Be7 {[%emt 0:00:30]} 28. Na4 {[%emt 0:00:30]} h5 {[%emt 0:00:30]} 29. Nc5 {[%emt 0:00:30]} Bxc5 {[%emt 0:00:30]} 30. bxc5 {[%emt 0:00:30]} Bb7 {[%emt 0:00:30]} 31. Ba4 {[%emt 0:00:30]} Rc8 {[%emt 0:00:30]} 32. Rc2 {[%emt 0:00:30]} Bc6 {[%emt 0:00:30]} 33. Bxc6 {[%emt 0:00:30]} Rxc6 {[%emt 0:00:30]} 34. Qa4 {[%emt 0:00:30]} Rc8 {[%emt 0:00:30]} 35. c6 {[%emt 0:00:30]} Qxe5 {[%emt 0:00:30]} 36. c7 {[%emt 0:00:30]} Rff8 {[%emt 0:00:30]} 37. Qd4 {[%emt 0:00:30]} Qxd4 {[%emt 0:00:30]} 38. Rxd4 {[%emt 0:00:30]} e5 {[%emt 0:00:30]} 39. Rxd5 {[%emt 0:00:30]} 1-0

[Event "Fagernes Chess Open 2024"]
[Site "Fagernes"]
[Date "2024.03.27"]
[Round "4.3"]
[White "Shehzad, Alina"]
[Black "Sushrutha, Reddy"]
[Result "0-1"]
[ECO "B76"]
[WhiteElo "1670"]
[BlackElo "1707"]
[Annotator "NA RC"]
[PlyCount "48"]
[EventDate "2024.03.25"]
[EventType "swiss"]
[EventCountry "NOR"]
[SourceTitle "playchess.com"]
[Source "ChessBase"]
[SourceQuality "1"]
[TimeControl "40/6000+30:2400+30"]

1. e4 {[%emt 0:02:14]} c5 {[%emt 0:00:10]} 2. Nf3 {[%emt 0:00:11]} d6 {[%emt 0:00:06]} 3. d4 {[%emt 0:00:08]} cxd4 {[%emt 0:00:05]} 4. Nxd4 {[%emt 0:00:05]} Nf6 {[%emt 0:00:06]} 5. Nc3 {[%emt 0:00:26]} g6 {[%emt 0:00:11]} 6. f3 {[%emt 0:00:54]} Bg7 {[%emt 0:00:14]} 7. Be3 {[%emt 0:01:16]} O-O {[%emt 0:00:06]} 8. Qd2 {[%emt 0:01:01]} Nc6 {[%emt 0:00:15]} 9. O-O-O {[%emt 0:01:02]} d5 {[%emt 0:00:05]} 10. Nxc6 {[%emt 0:06:01]} bxc6 {[%emt 0:00:29]} 11. exd5 {[%emt 0:00:36]} Nxd5 {[%emt 0:00:18]} 12. Nxd5 {[%emt 0:00:11]} cxd5 {[%emt 0:00:11]} 13. Qxd5 {[%emt 0:00:09]} Qc7 {[%emt 0:00:09]} 14. Qc4 {[%emt 0:22:42]} Qe5 {[%emt 0:03:08]} 15. Bd4 {[%emt 0:07:57]} Qf4+ {[%emt 0:00:26]} 16. Kb1 {[%emt 0:18:22]} Be6 {[%emt 0:01:05]} 17. Qa4 {[%emt 0:13:29]} Rfd8 {[%emt 0:01:09]} 18. c3 {[%emt 0:01:13]} Bf5+ {[%emt 0:00:18]} 19. Ka1 {[%emt 0:01:42]} e5 {[%emt 0:00:37]} 20. Bb5 {[%emt 0:13:57]} exd4 {[%emt 0:00:25]} 21. cxd4 {[%emt 0:00:11]} Rxd4 {[%emt 0:00:47]} 22. Rxd4 {[%emt 0:00:15]} Qxd4 {[%emt 0:00:23]} 23. Qxd4 {[%emt 0:02:09]} Bxd4 {[%emt 0:00:04]} 24. g4 {[%emt 0:03:07]} Rb8 {[%emt 0:00:46]} 0-1

[Event "Fagernes Chess Open 2024"]
[Site "Fagernes"]
[Date "2024.03.27"]
[Round "4.4"]
[White "Rolstad, Morten"]
[Black "Andersen, Dag"]
[Result "1/2-1/2"]
[ECO "C06"]
[WhiteElo "1879"]
[BlackElo "1899"]
[Annotator "NA RC"]
[PlyCount "70"]
[EventDate "2024.03.25"]
[EventType "swiss"]
[EventCountry "NOR"]
[SourceTitle "playchess.com"]
[Source "ChessBase"]
[SourceQuality "1"]
[TimeControl "40/6000+30:2400+30"]

1. e4 {[%emt 0:00:07]} e6 {[%emt 0:00:40]} 2. d4 {[%emt 0:00:14]} d5 {[%emt 0:00:06]} 3. Nd2 {[%emt 0:00:15]} Nf6 {[%emt 0:00:11]} 4. e5 {[%emt 0:00:07]} Nfd7 {[%emt 0:00:06]} 5. Bd3 {[%emt 0:00:20]} c5 {[%emt 0:00:59]} 6. c3 {[%emt 0:00:17]} Nc6 {[%emt 0:00:53]} 7. Ne2 {[%emt 0:00:43]} cxd4 {[%emt 0:03:59]} 8. cxd4 {[%emt 0:00:27]} Qb6 {[%emt 0:05:18]} 9. Nf3 {[%emt 0:00:56]} f6 {[%emt 0:00:18]} 10. exf6 {[%emt 0:02:51]} Nxf6 {[%emt 0:00:19]} 11. O-O {[%emt 0:00:58]} Bd6 {[%emt 0:00:08]} 12. Bf4 {[%emt 0:13:09]} Bxf4 {[%emt 0:02:24]} 13. Nxf4 {[%emt 0:00:34]} O-O {[%emt 0:02:03]} 14. Re1 {[%emt 0:06:48]} Ne4 {[%emt 0:18:10]} 15. g3 {[%emt 0:08:46]} Qxb2 {[%emt 0:07:58]} 16. Bxe4 {[%emt 0:03:51]} dxe4 {[%emt 0:00:40]} 17. Rxe4 {[%emt 0:01:32]} Nd8 {[%emt 0:30:04]} 18. Re3 {[%emt 0:05:49]} Qb6 {[%emt 0:03:07]} 19. Ne5 {[%emt 0:06:04]} Nf7 {[%emt 0:04:57]} 20. d5 {[%emt 0:21:18]} Nxe5 {[%emt 0:02:34]} 21. Rxe5 {[%emt 0:00:30]} Qd6 {[%emt 0:02:18]} 22. Qd4 {[%emt 0:03:01]} Rf5 {[%emt 0:04:20]} 23. Rae1 {[%emt 0:04:00]} Rxe5 {[%emt 0:03:35]} 24. Rxe5 {[%emt 0:00:12]} Bd7 {[%emt 0:05:20]} 25. Rg5 {[%emt 0:06:18]} Qe7 {[%emt 0:02:52]} 26. dxe6 {[%emt 0:09:08]} Bc6 {[%emt 0:03:55]} 27. h4 {[%emt 0:07:18]} h6 {[%emt 0:01:13]} 28. Rf5 {[%emt 0:01:29]} Rd8 {[%emt 0:00:52]} 29. Qa1 {[%emt 0:01:21]} Qd6 {[%emt 0:01:51]} 30. Qe1 {[%emt 0:01:13]} Qd1 {[%emt 0:01:19]} 31. Ng2 {[%emt 0:05:05]} Qg4 {[%emt 0:01:45]} 32. Rf4 {[%emt 0:00:56]} Qh3 {[%emt 0:00:43]} 33. f3 {[%emt 0:00:46]} Re8 {[%emt 0:00:31]} 34. Kf2 {[%emt 0:00:33]} Qxe6 {[%emt 0:00:38]} 35. Qxe6+ {[%emt 0:00:24]} Rxe6 {[%emt 0:00:06]} 1/2-1/2

[Event "Fagernes Chess Open 2024"]
[Site "Fagernes"]
[Date "2024.03.27"]
[Round "4.5"]
[White "Kittilsen, Sigurd"]
[Black "Damiano, Sophie"]
[Result "1-0"]
[ECO "B19"]
[WhiteElo "1910"]
[BlackElo "1691"]
[Annotator "RC"]
[PlyCount "101"]
[EventDate "2024.03.25"]
[EventType "swiss"]
[EventCountry "NOR"]
[SourceTitle "playchess.com"]
[Source "ChessBase"]
[SourceQuality "1"]
[TimeControl "40/6000+30:2400+30"]

1. e4 {[%emt 0:01:17]} c6 {[%emt 0:03:05]} 2. d4 {[%emt 0:00:00]} d5 {[%emt 0:00:25]} 3. Nd2 {[%emt 0:00:00]} dxe4 {[%emt 0:00:32]} 4. Nxe4 {[%emt 0:00:00]} Bf5 {[%emt 0:00:18]} 5. Ng3 {[%emt 0:00:00]} Bg6 {[%emt 0:00:07]} 6. h4 {[%emt 0:00:00]} h6 {[%emt 0:01:18]} 7. Nf3 {[%emt 0:00:00]} Nd7 {[%emt 0:03:53]} 8. h5 {[%emt 0:00:17]} Bh7 {[%emt 0:00:09]} 9. Bd3 {[%emt 0:00:10]} Bxd3 {[%emt 0:00:16]} 10. Qxd3 {[%emt 0:00:05]} Ngf6 {[%emt 0:01:32]} 11. Bd2 {[%emt 0:00:39]} e6 {[%emt 0:05:41]} 12. O-O-O {[%emt 0:00:34]} b5 {[%emt 0:04:34]} 13. Ne4 {[%emt 0:09:26]} a5 {[%emt 0:06:38]} 14. Bf4 {[%emt 0:03:17]} Nb6 {[%emt 0:05:53]} 15. Nxf6+ {[%emt 0:05:48]} gxf6 {[%emt 0:00:26]} 16. Rhe1 {[%emt 0:23:19]} a4 {[%emt 0:10:29]} 17. Kb1 {[%emt 0:15:53]} Nc4 {[%emt 0:25:26]} 18. d5 {[%emt 0:10:58]} a3 {[%emt 0:03:56]} 19. dxe6 {[%emt 0:01:07]} Qxd3 {[%emt 0:01:19]} 20. exf7+ {[%emt 0:00:09]} Kxf7 {[%emt 0:00:19]} 21. Rxd3 {[%emt 0:00:59]} axb2 {[%emt 0:02:18]} 22. Nd2 {[%emt 0:12:03]} Bb4 {[%emt 0:12:11]} 23. Rd7+ {[%emt 0:02:19]} Kg8 {[%emt 0:01:16]} 24. Re6 {[%emt 0:08:12]} Bc3 {[%emt 0:03:20]} 25. Nxc4 {[%emt 0:00:42]} bxc4 {[%emt 0:00:10]} 26. Re3 {[%emt 0:02:30]} Bb4 {[%emt 0:03:06]} 27. Kxb2 {[%emt 0:01:02]} Rh7 {[%emt 0:03:26]} 28. Rg3+ {[%emt 0:01:02]} Kh8 {[%emt 0:00:30]} 29. Rxh7+ {[%emt 0:00:50]} Kxh7 {[%emt 0:00:05]} 30. Rg6 {[%emt 0:04:38]} Bf8 {[%emt 0:03:45]} 31. c3 {[%emt 0:00:48]} Bg7 {[%emt 0:01:31]} 32. Rg4 {[%emt 0:01:25]} Ra5 {[%emt 0:00:22]} 33. Bd6 {[%emt 0:01:59]} Rb5+ {[%emt 0:02:09]} 34. Kc2 {[%emt 0:00:43]} Rd5 {[%emt 0:02:26]} 35. Bc7 {[%emt 0:00:55]} Rc5 {[%emt 0:00:47]} 36. Bd6 {[%emt 0:01:22]} Rd5 {[%emt 0:01:40]} 37. Rd4 {[%emt 0:00:14]} Rf5 {[%emt 0:00:19]} 38. f3 {[%emt 0:01:04]} Ra5 {[%emt 0:02:26]} 39. a3 {[%emt 0:00:32]} f5 {[%emt 0:00:29]} 40. Rxc4 {[%emt 0:00:17]} Ra6 {[%emt 0:00:04]} 41. a4 {[%emt 0:43:15]} Kg8 {[%emt 0:41:02]} 42. Kb3 {[%emt 0:00:00]} Bf6 {[%emt 0:00:00]} 43. Rf4 {[%emt 0:00:00]} Ra5 {[%emt 0:00:00]} 44. Bb4 {[%emt 0:00:00]} Re5 {[%emt 0:00:00]} 45. Rc4 {[%emt 0:00:00]} Re6 {[%emt 0:00:00]} 46. a5 {[%emt 0:00:00]} Bg5 {[%emt 0:00:00]} 47. a6 {[%emt 0:00:00]} c5 {[%emt 0:00:00]} 48. a7 {[%emt 0:00:00]} Ra6 {[%emt 0:00:00]} 49. Bxc5 {[%emt 0:00:00]} Bd8 {[%emt 0:00:00]} 50. Rb4 {[%emt 0:00:00]} Bc7 {[%emt 0:00:00]} 51. Rb8+ {[%emt 0:00:00]} 1-0

[Event "Fagernes Chess Open 2024"]
[Site "Fagernes"]
[Date "2024.03.27"]
[Round "4.6"]
[White "Vollheim, Daniel O"]
[Black "Ali, Karim"]
[Result "0-1"]
[ECO "E11"]
[WhiteElo "1713"]
[BlackElo "1855"]
[Annotator "NA RC"]
[PlyCount "92"]
[EventDate "2024.03.25"]
[EventType "swiss"]
[EventCountry "NOR"]
[SourceTitle "playchess.com"]
[Source "ChessBase"]
[SourceQuality "1"]
[TimeControl "40/6000+30:2400+30"]

1. d4 {[%emt 0:03:35]} Nf6 {[%emt 0:04:37]} 2. c4 {[%emt 0:00:00]} e6 {[%emt 0:00:04]} 3. Nf3 {[%emt 0:00:00]} Bb4+ {[%emt 0:00:23]} 4. Bd2 {[%emt 0:00:00]} Qe7 {[%emt 0:02:27]} 5. a3 {[%emt 0:00:00]} Bxd2+ {[%emt 0:00:09]} 6. Nbxd2 {[%emt 0:00:00]} d6 {[%emt 0:00:46]} 7. e3 {[%emt 0:00:00]} O-O {[%emt 0:00:22]} 8. Be2 {[%emt 0:00:00]} e5 {[%emt 0:02:28]} 9. d5 {[%emt 0:06:04]} e4 {[%emt 0:03:08]} 10. Nd4 {[%emt 0:00:27]} c5 {[%emt 0:00:12]} 11. dxc6 {[%emt 0:00:39]} bxc6 {[%emt 0:03:57]} 12. O-O {[%emt 0:00:41]} c5 {[%emt 0:00:26]} 13. Nb5 {[%emt 0:01:41]} a6 {[%emt 0:03:08]} 14. Nc3 {[%emt 0:00:42]} Bf5 {[%emt 0:02:46]} 15. Qc2 {[%emt 0:01:39]} Bg6 {[%emt 0:00:25]} 16. Rfd1 {[%emt 0:01:09]} Nc6 {[%emt 0:06:28]} 17. h3 {[%emt 0:05:48]} Qe5 {[%emt 0:03:49]} 18. Nf1 {[%emt 0:01:42]} Ne7 {[%emt 0:05:07]} 19. Rd2 {[%emt 0:03:30]} Rfd8 {[%emt 0:09:37]} 20. Rad1 {[%emt 0:01:04]} Rab8 {[%emt 0:09:10]} 21. Ng3 {[%emt 0:01:31]} h5 {[%emt 0:10:40]} 22. h4 {[%emt 0:22:02]} Nf5 {[%emt 0:03:20]} 23. Nxf5 {[%emt 0:00:54]} Bxf5 {[%emt 0:03:03]} 24. b3 {[%emt 0:08:18]} g6 {[%emt 0:11:27]} 25. Nd5 {[%emt 0:01:02]} a5 {[%emt 0:05:25]} 26. g3 {[%emt 0:05:44]} Rb7 {[%emt 0:02:40]} 27. Kg2 {[%emt 0:06:19]} Ne8 {[%emt 0:01:07]} 28. Qb2 {[%emt 0:03:37]} Qxb2 {[%emt 0:05:15]} 29. Rxb2 {[%emt 0:00:22]} Rdb8 {[%emt 0:00:05]} 30. Rdb1 {[%emt 0:00:48]} Kg7 {[%emt 0:00:29]} 31. Bd1 {[%emt 0:01:49]} Nf6 {[%emt 0:00:40]} 32. Nxf6 {[%emt 0:01:22]} Kxf6 {[%emt 0:00:06]} 33. Rd2 {[%emt 0:00:16]} Ke7 {[%emt 0:00:17]} 34. Bc2 {[%emt 0:00:27]} a4 {[%emt 0:01:06]} 35. Bd1 {[%emt 0:01:47]} Be6 {[%emt 0:01:16]} 36. Be2 {[%emt 0:00:25]} Rxb3 {[%emt 0:00:43]} 37. Rbd1 {[%emt 0:01:59]} R8b6 {[%emt 0:00:24]} 38. Rc1 {[%emt 0:01:35]} Rxa3 {[%emt 0:01:14]} 39. Bd1 {[%emt 0:01:35]} Rb4 {[%emt 0:00:30]} 40. Rdc2 {[%emt 0:00:15]} f6 {[%emt 0:03:35]} 41. Kf1 {[%emt 0:40:47]} Rd3 {[%emt 0:46:49]} 42. Be2 {[%emt 0:01:24]} Rdb3 {[%emt 0:00:00]} 43. Bd1 {[%emt 0:00:00]} Rb1 {[%emt 0:00:00]} 44. Be2 {[%emt 0:00:00]} a3 {[%emt 0:00:00]} 45. Rxb1 {[%emt 0:00:00]} Rxb1+ {[%emt 0:00:00]} 46. Kg2 {[%emt 0:00:00]} Rb2 {[%emt 0:00:00]} 0-1

[Event "Fagernes Chess Open 2024"]
[Site "Fagernes"]
[Date "2024.03.27"]
[Round "4.7"]
[White "Halvorsen, Benjamin"]
[Black "Nordahl, Christine"]
[Result "1-0"]
[ECO "B38"]
[WhiteElo "1848"]
[BlackElo "1673"]
[Annotator "NA RC"]
[PlyCount "109"]
[EventDate "2024.03.25"]
[EventType "swiss"]
[EventCountry "NOR"]
[SourceTitle "playchess.com"]
[Source "ChessBase"]
[SourceQuality "1"]
[TimeControl "40/6000+30:2400+30"]

1. e4 {[%emt 0:03:22]} c5 {[%emt 0:00:13]} 2. Nf3 {[%emt 0:00:00]} g6 {[%emt 0:00:23]} 3. d4 {[%emt 0:00:49]} cxd4 {[%emt 0:00:28]} 4. Nxd4 {[%emt 0:00:10]} Nc6 {[%emt 0:00:52]} 5. c4 {[%emt 0:00:21]} Bg7 {[%emt 0:02:10]} 6. Be3 {[%emt 0:00:07]} Nf6 {[%emt 0:01:16]} 7. Nc3 {[%emt 0:00:11]} Nxd4 {[%emt 0:01:20]} 8. Bxd4 {[%emt 0:00:11]} O-O {[%emt 0:00:05]} 9. Be2 {[%emt 0:00:28]} d6 {[%emt 0:00:32]} 10. O-O {[%emt 0:00:47]} Bd7 {[%emt 0:02:02]} 11. h3 {[%emt 0:11:08]} Bc6 {[%emt 0:04:06]} 12. Qc2 {[%emt 0:02:15]} e6 {[%emt 0:09:44]} 13. Rfd1 {[%emt 0:05:23]} Qe7 {[%emt 0:00:19]} 14. b4 {[%emt 0:14:13]} b6 {[%emt 0:05:05]} 15. a4 {[%emt 0:04:22]} Rfc8 {[%emt 0:11:03]} 16. a5 {[%emt 0:10:34]} bxa5 {[%emt 0:04:49]} 17. Rxa5 {[%emt 0:02:33]} Nd7 {[%emt 0:05:12]} 18. Bxg7 {[%emt 0:04:01]} Kxg7 {[%emt 0:00:09]} 19. Qd2 {[%emt 0:01:56]} Nf6 {[%emt 0:05:36]} 20. Qxd6 {[%emt 0:04:06]} Qxd6 {[%emt 0:00:32]} 21. Rxd6 {[%emt 0:00:07]} Nxe4 {[%emt 0:00:07]} 22. Rxc6 {[%emt 0:16:13]} Nxc3 {[%emt 0:02:46]} 23. Bf3 {[%emt 0:00:06]} Rxc6 {[%emt 0:00:13]} 24. Bxc6 {[%emt 0:00:04]} Rc8 {[%emt 0:00:07]} 25. b5 {[%emt 0:00:40]} Ne2+ {[%emt 0:00:53]} 26. Kf1 {[%emt 0:00:06]} Nd4 {[%emt 0:00:23]} 27. Ra6 {[%emt 0:03:24]} Kf6 {[%emt 0:01:32]} 28. f4 {[%emt 0:05:49]} Nxc6 {[%emt 0:06:15]} 29. bxc6 {[%emt 0:00:05]} Kf5 {[%emt 0:05:48]} 30. Rxa7 {[%emt 0:08:12]} Rxc6 {[%emt 0:00:53]} 31. Rxf7+ {[%emt 0:05:19]} Ke4 {[%emt 0:00:17]} 32. Rxh7 {[%emt 0:00:35]} Kxf4 {[%emt 0:00:10]} 33. Rh4+ {[%emt 0:00:37]} Kf5 {[%emt 0:00:08]} 34. Ke2 {[%emt 0:00:48]} g5 {[%emt 0:00:09]} 35. Rd4 {[%emt 0:00:28]} e5 {[%emt 0:00:08]} 36. g4+ {[%emt 0:00:48]} Ke6 {[%emt 0:00:11]} 37. Re4 {[%emt 0:00:06]} Rb6 {[%emt 0:02:29]} 38. Re3 {[%emt 0:00:40]} Rb2+ {[%emt 0:00:36]} 39. Kd3 {[%emt 0:00:35]} Rb1 {[%emt 0:03:35]} 40. Kc2 {[%emt 0:01:08]} Rb4 {[%emt 0:00:14]} 41. Rc3 {[%emt 0:40:07]} e4 {[%emt 0:41:13]} 42. c5 {[%emt 0:02:16]} Kd7 {[%emt 0:00:08]} 43. c6+ {[%emt 0:00:08]} Kc7 {[%emt 0:00:05]} 44. Kd2 {[%emt 0:00:05]} Rd4+ {[%emt 0:01:33]} 45. Ke3 {[%emt 0:00:06]} Ra4 {[%emt 0:00:05]} 46. Rc5 {[%emt 0:00:25]} Ra3+ {[%emt 0:00:25]} 47. Kxe4 {[%emt 0:00:06]} Rxh3 {[%emt 0:00:05]} 48. Kf5 {[%emt 0:00:06]} Rh8 {[%emt 0:00:30]} 49. Kxg5 {[%emt 0:00:08]} Kd6 {[%emt 0:00:07]} 50. Rc1 {[%emt 0:00:10]} Ra8 {[%emt 0:00:44]} 51. c7 {[%emt 0:00:20]} Kd7 {[%emt 0:00:04]} 52. c8=Q+ {[%emt 0:00:13]} Rxc8 {[%emt 0:00:08]} 53. Rxc8 {[%emt 0:00:01]} Kxc8 {[%emt 0:00:10]} 54. Kf6 {[%emt 0:00:01]} Kd7 {[%emt 0:00:11]} 55. Kf7 {[%emt 0:00:12]} 1-0

[Event "Fagernes Chess Open 2024"]
[Site "Fagernes"]
[Date "2024.03.27"]
[Round "4.8"]
[White "Lahlum, Ida"]
[Black "Kristiansen, David"]
[Result "1-0"]
[ECO "E21"]
[WhiteElo "1755"]
[BlackElo "1625"]
[Annotator "NA RC"]
[PlyCount "105"]
[EventDate "2024.03.25"]
[EventType "swiss"]
[EventCountry "NOR"]
[SourceTitle "playchess.com"]
[Source "ChessBase"]
[SourceQuality "1"]
[TimeControl "40/6000+30:2400+30"]

1. d4 {[%emt 0:00:02]} Nf6 {[%emt 0:00:13]} 2. c4 {[%emt 0:00:08]} e6 {[%emt 0:00:06]} 3. Nc3 {[%emt 0:00:19]} Bb4 {[%emt 0:00:37]} 4. Qc2 {[%emt 0:00:39]} b6 {[%emt 0:02:18]} 5. Nf3 {[%emt 0:04:01]} Bb7 {[%emt 0:01:46]} 6. Bd2 {[%emt 0:03:01]} Bxc3 {[%emt 0:01:00]} 7. Bxc3 {[%emt 0:00:41]} d6 {[%emt 0:02:00]} 8. e3 {[%emt 0:02:40]} Nbd7 {[%emt 0:06:31]} 9. Bd3 {[%emt 0:03:34]} h6 {[%emt 0:04:07]} 10. e4 {[%emt 0:01:56]} O-O {[%emt 0:15:48]} 11. O-O {[%emt 0:00:09]} c5 {[%emt 0:00:30]} 12. d5 {[%emt 0:05:20]} e5 {[%emt 0:06:38]} 13. g3 {[%emt 0:08:32]} Nh7 {[%emt 0:02:56]} 14. Nh4 {[%emt 0:04:53]} Bc8 {[%emt 0:13:09]} 15. Nf5 {[%emt 0:08:20]} Ndf6 {[%emt 0:04:01]} 16. f4 {[%emt 0:05:41]} g6 {[%emt 0:08:45]} 17. fxe5 {[%emt 0:12:34]} Ng4 {[%emt 0:08:07]} 18. Nxd6 {[%emt 0:10:52]} Ne3 {[%emt 0:00:50]} 19. Qf2 {[%emt 0:04:56]} Nxf1 {[%emt 0:00:40]} 20. Rxf1 {[%emt 0:00:03]} Ng5 {[%emt 0:02:49]} 21. Qd2 {[%emt 0:05:12]} Bg4 {[%emt 0:01:18]} 22. h4 {[%emt 0:04:41]} Nf3+ {[%emt 0:01:49]} 23. Rxf3 {[%emt 0:00:11]} Bxf3 {[%emt 0:00:53]} 24. Qxh6 {[%emt 0:00:53]} Qe7 {[%emt 0:03:18]} 25. e6 {[%emt 0:04:51]} f6 {[%emt 0:00:52]} 26. Qxg6+ {[%emt 0:03:13]} Qg7 {[%emt 0:01:10]} 27. Qxg7+ {[%emt 0:00:16]} Kxg7 {[%emt 0:00:09]} 28. e7 {[%emt 0:01:46]} Rg8 {[%emt 0:01:39]} 29. Nf5+ {[%emt 0:04:47]} Kg6 {[%emt 0:01:17]} 30. d6 {[%emt 0:00:48]} Bg4 {[%emt 0:01:11]} 31. d7 {[%emt 0:01:57]} Bxf5 {[%emt 0:00:11]} 32. exf5+ {[%emt 0:02:31]} Kf7 {[%emt 0:00:12]} 33. d8=Q {[%emt 0:03:02]} Raxd8 {[%emt 0:00:18]} 34. exd8=Q {[%emt 0:00:16]} Rxd8 {[%emt 0:00:20]} 35. Be4 {[%emt 0:01:36]} Re8 {[%emt 0:01:18]} 36. Bd5+ {[%emt 0:00:21]} Ke7 {[%emt 0:00:15]} 37. Kf2 {[%emt 0:00:39]} Rh8 {[%emt 0:00:58]} 38. Kf3 {[%emt 0:00:48]} Rh6 {[%emt 0:01:40]} 39. Kf4 {[%emt 0:01:23]} a5 {[%emt 0:00:37]} 40. a4 {[%emt 0:01:33]} Rh5 {[%emt 0:02:19]} 41. Be1 {[%emt 0:04:40]} Rh7 {[%emt 0:01:02]} 42. g4 {[%emt 0:01:29]} Rg7 {[%emt 0:00:09]} 43. g5 {[%emt 0:01:20]} Rh7 {[%emt 0:00:16]} 44. g6 {[%emt 0:01:22]} Rg7 {[%emt 0:00:08]} 45. h5 {[%emt 0:00:25]} Kf8 {[%emt 0:00:16]} 46. h6 {[%emt 0:00:47]} Re7 {[%emt 0:00:10]} 47. Be6 {[%emt 0:01:30]} b5 {[%emt 0:01:03]} 48. g7+ {[%emt 0:01:03]} Rxg7 {[%emt 0:00:13]} 49. hxg7+ {[%emt 0:00:06]} Kxg7 {[%emt 0:00:05]} 50. cxb5 {[%emt 0:00:22]} c4 {[%emt 0:00:10]} 51. b6 {[%emt 0:00:33]} c3 {[%emt 0:00:06]} 52. Bxc3 {[%emt 0:00:20]} Kh8 {[%emt 0:00:44]} 53. b7 {[%emt 0:00:17]} 1-0